fUST/lending_fUST_20240101
["ID","MTS","AMOUNT","RATE_DAILY","PERIOD"]
[309769683,1704109832464,-413.28652308,0.00021084,2]
[309769684,1704109832475,-15849.01373132,0.00021084,2]
[309769685,1704109832484,-166.08253714,0.00021085,2]
[309769686,1704109832493,-154.84515485,0.00021085,2]
[309769687,1704109832503,-156.48322816,0.00021085,2]
[309769688,1704109832513,-321.76626595,0.00021085,2]
[309769689,1704109832524,-20821.7469816,0.00021085,2]
[309769690,1704109832533,-14213.77123395,0.00021085,2]
[309769691,1704109832543,-15178.7193092,0.00021085,2]
[309769692,1704109832552,-593.46742734,0.00021086,2]
[309769693,1704109832562,-154.84515485,0.00021086,2]
[309769694,1704109832571,-230.0137314,0.00021086,2]
[309769695,1704109832582,-2630.41248819,0.00021086,2]
[309769696,1704109832592,-154.84515485,0.00021086,2]
[309769697,1704109832602,-1773.68924842,0.00021086,2]
[309769698,1704109832613,-293.82215808,0.00021086,2]
[309769699,1704109832622,-1575.4438656,0.00021087,2]
[309769700,1704109832632,-154.84515485,0.00021087,2]
[309769701,1704109832643,-154.84515485,0.00021087,2]
[309769702,1704109832655,-166.23904276,0.00021087,2]
[309769703,1704109832666,-164.57325592,0.00021087,2]
[309769704,1704109832678,-19622.64196242,0.00021087,2]
[309769705,1704109832688,-285.17267218,0.00021088,2]
[309769706,1704109832697,-399.15407367,0.00021088,2]
[309769707,1704109832708,-1584.15548242,0.00021088,2]
[309769708,1704109832719,-154.84515485,0.00021088,2]
[309769709,1704109832728,-78208.01491016,0.00021088,2]
[309769710,1704109832738,-26366.26316002,0.00021089,2]
[309769711,1704109832749,-7849.52199751,0.0002109,2]
[309769712,1704109832757,-250.29816978,0.00021128,2]
[309769713,1704109832768,-155.30153862,0.00021128,2]
[309769714,1704109832778,-803.07158409,0.00021128,2]
[309769715,1704109832787,-184.67964728,0.0002147,2]
[309769716,1704109832797,-263.89328743,0.0002155,2]
[309769717,1704109832806,-154.96542653,0.00021551,2]
[309769718,1704109832815,-155.06125826,0.00021552,2]
[309769719,1704109832824,-154.84515485,0.00021552,2]
[309769720,1704109832834,-1618.84472105,0.00021557,2]
[309769721,1704109832845,-155.16578643,0.00021557,2]
[309769722,1704109832855,-1732.5543903,0.00021565,2]
[309769723,1704109832864,-261.10613761,0.00021565,2]
[309769724,1704109832874,-155.2790753,0.00021565,2]
[309769725,1704109832883,-155.15658752,0.00021565,2]
[309769726,1704109832892,-154.84515485,0.00021565,2]
[309769727,1704109832902,-154.9492219,0.00021565,2]
[309769728,1704109832911,-2103.02431554,0.00021565,2]
[309769729,1704109832920,-2066.1268001,0.00021565,2]
[309769730,1704109832930,-6010.82731194,0.00021566,2]
[309769731,1704109832939,-1645.60949816,0.00021568,2]
[309769732,1704109832949,-845.0,0.00021746,2]
[309769733,1704109832958,-514.00733161,0.00021917,4]
[309769734,1704109832967,-470.38334829,0.00021917,4]
[309769735,1704109832977,-166.666666,0.00021918,2]
[309769736,1704109832986,-156.51769097,0.00022,2]
[309769737,1704109832997,-4906.45463586,0.00022,2]
[309769738,1704109833007,-166.666666,0.00022431,2]
[309769739,1704109833018,-11190.0205209,0.00022852,2]
[309769740,1704109833030,-151.0,0.00022852,2]
[309769741,1704109833043,-151.0,0.00022852,2]
[309769742,1704109833055,-166.666666,0.00022944,2]
[309769743,1704109833071,-200.0,0.00023213,7]
[309769744,1704109833087,-166.666666,0.00023456,2]
[309769745,1704109833101,-166.666666,0.00023969,2]
[309769746,1704109833114,-151.0,0.00024108,2]
[309769747,1704109833127,-166.666666,0.00024482,2]
[309769748,1704109833142,-2479.78133963,0.00025,2]
[309769749,1704109833158,-178.37917647,0.00025,2]
[309769750,1704109833174,-612.61636559,0.00025,2]
[309769751,1704109833189,-626.32192697,0.00025,2]
[309769752,1704109833203,-280.0,0.00025535,7]
[309769753,1704109833215,-2546.99337017,0.00027,2]
[309769754,1704109833229,-151.0,0.00027102,2]
[309769755,1704109833242,-305.250957,0.00027397,3]
[309769756,1704109833255,-155.03312625,0.00028,2]
[309769757,1704109833268,-391.0,0.00028088,15]
[309769758,1704109833284,-155.18994402,0.00028138,7]
[309769759,1704109833298,-170.07739419,0.0002915,2]
[309769760,1704109833309,-1369.0,0.00029989,13]
[309769761,1704109833318,-151.0,0.00029995,2]
[309769762,1704109833330,-157.942818,0.00029995,2]
[309769763,1704109833344,-7020.37840216,0.0003,4]
[309769764,1704109833355,-154.84515485,0.0003,4]
[309769765,1704109833368,-638.08762863,0.0003,4]
[309769766,1704109833380,-56213.0,0.0003,2]
[309769767,1704109833392,-155.0,0.0003,2]
[309769768,1704109833405,-151.0,0.0003,2]
[309769769,1704109833418,-243.76060025,0.0003,4]
[309769770,1704109833432,-171.0,0.0003,2]
[309769771,1704109833446,-155.47229691,0.0003007,4]
[309769772,1704109833459,-151.0,0.00030097,2]
[309769773,1704109833472,-336.993379,0.00030116,2]
[309769774,1704109833482,-164.96006402,0.00030686,4]
[309769775,1704109833492,-155.42846008,0.00030686,2]
[309769776,1704109833503,-200.0,0.00030897,15]
[309769777,1704109833516,-348.0,0.00030897,15]
[309769778,1704109833528,-4273.15779,0.00030994,2]
[309769779,1704109833540,-4031.02093131,0.00030995,4]
[309769780,1704109833552,-1200.0,0.00030995,4]
[309769781,1704109833564,-1023.89051787,0.00030995,2]
[309769782,1704109833574,-281.91464801,0.00030995,3]
[309769783,1704109833587,-194.32962477,0.00030995,4]
[309769784,1704109833599,-408.84089293,0.00030995,2]
[309769785,1704109833610,-191.22933302,0.00030996,20]
[309769786,1704109833622,-274.09771886,0.00030996,4]
[309769787,1704109833635,-526.87034716,0.00030996,4]
[309769788,1704109833646,-1063.33346172,0.00030996,7]
[309769789,1704109833658,-3311.11283915,0.00030996,2]
[309769790,1704109833669,-303.49767716,0.00030996,4]
[309769791,1704109833681,-312.3342296,0.00030998,2]
[309769792,1704109833694,-358.15498075,0.00030998,4]
[309769793,1704109833707,-514.41395729,0.00030998,3]
[309769794,1704109833718,-161.76983789,0.00030998,4]
[309769795,1704109833729,-3000.0,0.00030999,2]
[309769796,1704109833742,-60781.0,0.00031,2]
[309769797,1704109833754,-151.0,0.00031,2]
[309769798,1704109833767,-174.991816,0.00031223,2]
[309769799,1704109833779,-155.0,0.0003137,2]
[309769800,1704109833792,-11197.0528091,0.00031497,2]
[309769801,1704109833803,-5000.0,0.00031795,7]
[309769802,1704109833813,-5000.0,0.00031795,7]
[309769803,1704109833825,-5000.0,0.00031955,7]
[309769804,1704109833837,-984.26645117,0.00032,2]
[309769805,1704109833849,-175.83411642,0.00032,50]
[309769806,1704109833860,-500.0,0.00032186,2]
[309769807,1704109833871,-500.0,0.00032186,2]
[309769808,1704109833883,-500.0,0.00032186,2]
[309769809,1704109833896,-500.0,0.00032186,2]
[309769810,1704109833907,-500.0,0.00032186,2]
[309769811,1704109833918,-155.0,0.0003274,2]
[309769812,1704109833931,-220.28885641,0.00032876,7]
[309769813,1704109833943,-176.26574,0.00032877,2]
[309769814,1704109833956,-176.26574,0.00032877,41]
[309769815,1704109834057,-176.26574,0.00032877,80]
[309769816,1704109834068,-176.26574,0.00032877,119]
[309769817,1704109834078,-4234.65575777,0.00032877,4]
[309769818,1704109834091,-265.42721233,0.00032877,4]
[309769819,1704109834100,-2674.06388022,0.00033,4]
[309769820,1704109834110,-55227.66,0.00033,2]
[309769821,1704109834119,-1411.98024022,0.00033,2]
[309769822,1704109834128,-151.0,0.00033,2]
[309769823,1704109834138,-151.0,0.00033,2]
[309769824,1704109834147,-171.0,0.00033,2]
[309769825,1704109834156,-171.0,0.00033,2]
[309769826,1704109834165,-151.0,0.00033092,3]
[309769827,1704109834175,-875.84704062,0.00033734,2]
[309769828,1704109834183,-1020.93171008,0.00033734,2]
[309769829,1704109834192,-183.62626435,0.00033734,2]
[309769830,1704109834201,-446.04338027,0.00033734,2]
[309769831,1704109834210,-262.40216901,0.00033734,2]
[309769832,1704109834219,-200.0,0.00033987,15]
[309769833,1704109834228,-200.0,0.00033987,15]
[309769834,1704109834237,-368.0,0.00033987,15]
[309769835,1704109834246,-1000.0,0.00034,7]
[309769836,1704109834256,-29727.00562034,0.00034,2]
[309769837,1704109834265,-175.0,0.0003408,2]
[309769838,1704109834273,-731.1579509,0.0003408,2]
[309769839,1704109834283,-730.88084525,0.0003408,2]
[309769840,1704109834292,-1009.1671472,0.0003408,2]
[309769841,1704109834300,-1000.0,0.0003408,10]
[309769842,1704109834310,-342.09234439,0.0003408,2]
[309769843,1704109834319,-156.28773871,0.0003411,2]
[309769844,1704109834328,-151.0,0.00034325,2]
[309769845,1704109834337,-703.99166004,0.00034325,2]
[309769846,1704109834345,-7015.79750139,0.000345,5]
[309769847,1704109834354,-666.12182543,0.0003496,5]
[309769848,1704109834363,-3545.15704766,0.00035,2]
[309769849,1704109834372,-20000.0,0.00035,10]
[309769850,1704109834381,-22486.0,0.00035,2]
[309769851,1704109834390,-9852.0,0.00035,10]
[309769852,1704109834399,-590.92054653,0.00035,2]
[309769853,1704109834408,-155.37813814,0.00035,4]
[309769854,1704109834417,-13361.25603998,0.00035,4]
[309769855,1704109834427,-5446.17196634,0.00035,7]
[309769856,1704109834436,-6000.0,0.00035,2]
[309769857,1704109834446,-151.0,0.00035,2]
[309769858,1704109834456,-2783.39901008,0.00035,4]
[309769859,1704109834466,-2156.6,0.000351,2]
[309769860,1704109834475,-6257.70042882,0.000355,14]
[309769861,1704109834485,-448.04870661,0.00035616,4]
[309769862,1704109834494,-224.150371,0.00035616,120]
[309769863,1704109834504,-2328.96041056,0.00035999,2]
[309769864,1704109834514,-272.10929198,0.00036,2]
[309769865,1704109834523,-231.12001718,0.00036,4]
[309769866,1704109834533,-9123.50237442,0.00036,4]
[309769867,1704109834542,-151.0,0.00036,2]
[309769868,1704109834551,-171.0,0.00036,2]
[309769869,1704109834561,-171.0,0.00036,2]
[309769870,1704109834570,-171.0,0.00036,2]
[309769871,1704109834579,-290.6885634,0.00036055,2]
[309769872,1704109834588,-151.0,0.00036086,4]
[309769873,1704109834597,-210.04098,0.00036388,2]
[309769874,1704109834606,-417.94666028,0.00037,7]
[309769875,1704109834616,-1000.0,0.00037,37]
[309769876,1704109834625,-200.0,0.00037,4]
[309769877,1704109834634,-2938.0,0.0003726,7]
[309769878,1704109834643,-153.0,0.00037288,2]
[309769879,1704109834652,-153.0,0.00037288,2]
[309769880,1704109834662,-153.0,0.00037288,2]
[309769881,1704109834672,-153.0,0.00037288,2]
[309769882,1704109834681,-200.0,0.00037385,15]
[309769883,1704109834690,-200.0,0.00037385,15]
[309769884,1704109834700,-200.0,0.00037385,15]
[309769885,1704109834712,-200.0,0.00037385,15]
[309769886,1704109834721,-275.0,0.00037385,15]
[309769887,1704109834730,-38500.51572791,0.00037741,2]
[309769888,1704109834739,-2603.65614163,0.00037741,2]
[309769889,1704109834749,-38132.2634897,0.00037741,2]
[309769890,1704109834758,-5000.0,0.00037741,7]
[309769891,1704109834767,-5000.0,0.00037741,7]
[309769892,1704109834777,-10049.62244758,0.00037741,2]
[309769893,1704109834786,-5188.20476868,0.00037741,2]
[309769894,1704109834795,-151.0,0.00037741,2]
[309769895,1704109834805,-151.0,0.00037741,2]
[309769896,1704109834814,-637.26601995,0.000378,2]
[309769897,1704109834823,-2938.0,0.00037945,14]
[309769898,1704109834832,-1066.95,0.00037947,2]
[309769899,1704109834842,-300.0,0.00038,15]
[309769900,1704109834851,-650.83652427,0.00038,30]
[309769901,1704109834860,-1000.0,0.00038,38]
[309769902,1704109834870,-500.0,0.00038356,2]
[309769903,1704109834880,-2005.94470138,0.00038413,2]
[309769904,1704109834890,-1000.0,0.00038431,10]
[309769905,1704109834899,-2938.0,0.0003863,15]
[309769906,1704109834909,-421.0,0.00038685,2]
[309769907,1704109834918,-2550.48387056,0.00039,4]
[309769908,1704109834927,-245.11453422,0.00039,4]
[309769909,1704109834936,-1000.0,0.00039,39]
[309769910,1704109834948,-171.0,0.00039,2]
[309769911,1704109834958,-171.0,0.00039,2]
[309769912,1704109834967,-171.0,0.00039,2]
[309769913,1704109834978,-151.0,0.00039081,14]
[309769914,1704109834990,-150.69,0.0003915,60]
[309769915,1704109834999,-150.0,0.0003916,60]
[309769916,1704109835009,-150.0,0.0003917,60]
[309769917,1704109835018,-155.0,0.00039175,60]
[309769918,1704109835027,-155.0,0.00039185,60]
[309769919,1704109835036,-155.0,0.00039195,60]
[309769920,1704109835045,-607.53,0.000393,60]
[309769921,1704109835054,-153.0,0.00039315,2]
[309769922,1704109835064,-153.0,0.00039315,2]
[309769923,1704109835073,-306.0833506,0.00039315,2]
[309769924,1704109835082,-153.0,0.00039315,2]
[309769925,1704109835092,-153.0,0.00039315,2]
[309769926,1704109835101,-153.0,0.00039315,2]
[309769927,1704109835111,-153.0,0.00039315,2]
[309769928,1704109835120,-153.0,0.00039315,2]
[309769929,1704109835130,-153.0,0.00039315,2]
[309769930,1704109835140,-153.0,0.00039315,2]
[309769931,1704109835149,-153.0,0.00039315,2]
[309769932,1704109835159,-153.0,0.00039315,2]
[309769933,1704109835168,-153.0,0.00039315,2]
[309769934,1704109835177,-153.0,0.00039315,2]
[309769935,1704109835187,-153.0,0.00039315,2]
[309769936,1704109835197,-204.1381133,0.00039315,2]
[309769937,1704109835206,-153.0,0.00039315,2]
[309769938,1704109835215,-950.0,0.000395,21]
[309769939,1704109835226,-1319.0,0.00039898,27]
[309769940,1704109835236,-4029.10026796,0.0003999,4]
[309769941,1704109835246,-3978.69314643,0.00039998,3]
[309769942,1704109835255,-215.45,0.00039999,2]
[309769943,1704109835265,-215.46,0.00039999,2]
[309769944,1704109835274,-717.43754794,0.0004,2]
[309769945,1704109835285,-46411.38583842,0.0004,15]
[309769946,1704109835294,-2709.43283345,0.0004,2]
[309769947,1704109835305,-203.99645896,0.0004,2]
[309769948,1704109835314,-296.7145786,0.0004,4]
[309769949,1704109835323,-1277.46612497,0.0004,4]
[309769950,1704109835333,-999.57,0.0004,7]
[309769951,1704109835343,-293.1850046,0.0004,30]
[309769952,1704109835352,-989.7567844,0.0004,2]
[309769953,1704109835362,-514.06563204,0.0004,5]
[309769954,1704109835371,-64362.34375199,0.0004,4]
[309769955,1704109835381,-1000.0,0.0004,40]
[309769956,1704109835391,-1452.94721261,0.0004,10]
[309769957,1704109835400,-1452.94721261,0.0004,10]
[309769958,1704109835409,-6580.74217896,0.0004,120]
[309769959,1704109835418,-249.38537774,0.0004,17]
[309769960,1704109835428,-2938.0,0.0004,30]
[309769961,1704109835438,-5004.78328255,0.0004,30]
[309769962,1704109835448,-723.95812066,0.00040227,30]
[309769963,1704109835457,-1110.09354053,0.00040227,30]
[309769964,1704109835467,-5000.0,0.0004045,7]
[309769965,1704109835477,-571.21478881,0.00040468,10]
[309769966,1704109835581,-428.78521119,0.00040468,10]
[309769967,1704109835660,-1000.0,0.00040468,10]
[309769968,1704109835672,-1000.0,0.00040583,10]
[309769969,1704109835681,-1000.0,0.00040607,10]
[309769970,1704109835691,-1826.46595919,0.00040919,2]
[309769971,1704109835701,-153.0,0.00040959,2]
[309769972,1704109835710,-153.0,0.00040959,2]
[309769973,1704109835719,-153.0,0.00040959,2]
[309769974,1704109835729,-153.0,0.00040959,2]
[309769975,1704109835738,-153.0,0.00040959,2]
[309769976,1704109835748,-153.0,0.00040959,2]
[309769977,1704109835757,-153.0,0.00040986,2]
[309769978,1704109835767,-12810.87957388,0.00041,10]
[309769979,1704109835777,-1000.0,0.00041,41]
[309769980,1704109835786,-250.0,0.00041095,10]
[309769981,1704109835796,-301.55982666,0.000411,14]
[309769982,1704109835805,-301.55982666,0.000411,14]
[309769983,1704109835815,-301.55982666,0.000411,14]
[309769984,1704109835825,-301.55982666,0.000411,14]
[309769985,1704109835835,-301.55982666,0.000411,14]
[309769986,1704109835846,-301.55982666,0.000411,14]
[309769987,1704109835857,-301.55982666,0.000411,14]
[309769988,1704109835868,-301.55982666,0.000411,14]
[309769989,1704109835878,-301.55982666,0.000411,14]
[309769990,1704109835889,-301.55982666,0.000411,14]
[309769991,1704109835900,-301.55982666,0.000411,14]
[309769992,1704109835910,-301.55982666,0.000411,14]
[309769993,1704109835921,-301.55982666,0.000411,14]
[309769994,1704109835932,-301.55982666,0.000411,14]
[309769995,1704109835943,-301.55982666,0.000411,14]
[309769996,1704109835953,-301.55982666,0.000411,14]
[309769997,1704109835963,-301.55982666,0.000411,14]
[309769998,1704109835973,-301.55982666,0.000411,14]
[309769999,1704109835983,-301.55982666,0.000411,14]
[309770000,1704109835993,-301.55,0.000411,14]
[309770001,1704109836003,-1206.23930664,0.000411,14]
[309770002,1704109836015,-1206.23930664,0.000411,14]
[309770003,1704109836025,-1206.23930664,0.000411,14]
[309770004,1704109836039,-1206.23930664,0.000411,14]
[309770005,1704109836047,-1206.23930664,0.000411,14]
[309770006,1704109836057,-1206.23930664,0.000411,14]
[309770007,1704109836066,-1206.23930664,0.000411,14]
[309770008,1704109836076,-1206.23930664,0.000411,14]
[309770009,1704109836091,-1206.23930664,0.000411,14]
[309770010,1704109836101,-1206.23930664,0.000411,14]
[309770011,1704109836113,-1206.23930664,0.000411,14]
[309770012,1704109836122,-1206.23930664,0.000411,14]
[309770013,1704109836133,-1206.23930664,0.000411,14]
[309770014,1704109836144,-1206.23930664,0.000411,14]
[309770015,1704109836154,-1206.23930664,0.000411,14]
[309770016,1704109836164,-179.62949834,0.000411,14]
[309770017,1704109836176,-196.59313064,0.000411,14]
[309770018,1704109836186,-196.59313064,0.000411,14]
[309770019,1704109836197,-200.0,0.00041124,30]
[309770020,1704109836208,-200.0,0.00041124,30]
[309770021,1704109836218,-200.0,0.00041124,30]
[309770022,1704109836227,-200.0,0.00041124,30]
[309770023,1704109836237,-200.0,0.00041124,30]
[309770024,1704109836248,-200.0,0.00041124,30]
[309770025,1704109836257,-305.0,0.00041124,30]
[309770026,1704109836267,-1206.23930664,0.00041184,14]
[309770027,1704109836277,-224.150371,0.00041553,120]
[309770028,1704109836287,-1206.23930664,0.00041613,14]
[309770029,1704109836299,-153.0,0.00041781,2]
[309770030,1704109836309,-153.0,0.00041781,2]
[309770031,1704109836318,-153.0,0.00041781,2]
[309770032,1704109836327,-153.0,0.00041781,2]
[309770033,1704109836337,-5000.0,0.00041804,15]
[309770034,1704109836346,-2912.91403848,0.00041804,15]
[309770086,1704109838170,-1677.73758043,0.00021071,2]
[309770088,1704109838179,-1584.15548242,0.00021071,2]
[309770090,1704109838188,-3731.01777703,0.00021072,2]
[309770092,1704109838197,-154.84515485,0.00021073,2]
[309770094,1704109838207,-1575.4438656,0.00021073,2]
[309770096,1704109838216,-6606.25407061,0.00021074,2]
[309770098,1704109838228,-1243.2679269,0.00021074,2]
[309770100,1704109838237,-8235.5685306,0.00021075,2]
[309770106,1704109838284,-18130.69462942,0.00021075,2]
[309770108,1704109838293,-2087.08596152,0.00041804,15]
[309770110,1704109838303,-23976.55079078,0.00042,5]
[309770112,1704109838312,-295.74377747,0.00042,2]
[309770114,1704109838322,-1000.0,0.00042,42]
[309770116,1704109838331,-546.86,0.00042,120]
[309770118,1704109838341,-171.0,0.00042,2]
[309770120,1704109838352,-171.0,0.00042,2]
[309770122,1704109838361,-150.84915085,0.00042019,2]
[309770124,1704109838371,-1206.23930664,0.00042042,14]
[309770126,1704109838381,-155.055739,0.00042076,21]
[309770128,1704109838390,-471.0,0.00042247,4]
[309770130,1704109838399,-160.0,0.00042323,3]
[309770132,1704109838408,-895.96478921,0.000424,10]
[309770134,1704109838418,-13639.11036057,0.00042465,5]
[309770136,1704109838427,-500.0,0.00042465,10]
[309770138,1704109838436,-550.0,0.00042465,3]
[309770140,1704109838445,-1206.23930664,0.00042471,14]
[309770142,1704109838454,-244.57856084,0.000427,30]
[309770144,1704109838464,-301.6983017,0.00042725,4]
[309770146,1704109838473,-500.0,0.00042739,7]
[309770148,1704109838482,-500.0,0.00042739,7]
[309770150,1704109838492,-228.40707817,0.00042739,7]
[309770151,1704109838501,-500.0,0.00042739,7]
[309770152,1704109838510,-210.18905524,0.00042739,7]
[309770153,1704109838519,-500.0,0.00042739,7]
[309770154,1704109838528,-500.0,0.00042739,7]
[309770155,1704109838536,-500.0,0.00042739,7]
[309770156,1704109838545,-500.0,0.00042739,7]
[309770157,1704109838554,-500.0,0.00042739,7]
[309770158,1704109838563,-500.0,0.00042739,7]
[309770159,1704109838572,-596.17920947,0.00042739,7]
[309770160,1704109838581,-500.0,0.00042739,7]
[309770161,1704109838590,-492.44917751,0.00042739,7]
[309770162,1704109838599,-538.9205088,0.00042739,7]
[309770163,1704109838608,-500.0,0.00042739,7]
[309770164,1704109838618,-500.0,0.00042739,7]
[309770165,1704109838627,-500.0,0.00042739,7]
[309770166,1704109838636,-500.0,0.00042739,7]
[309770167,1704109838645,-500.0,0.00042739,7]
[309770168,1704109838654,-500.0,0.00042739,7]
[309770169,1704109838662,-500.0,0.00042739,7]
[309770170,1704109838671,-500.0,0.00042739,7]
[309770171,1704109838679,-523.24095635,0.00042739,7]
[309770173,1704109838688,-500.0,0.00042739,7]
[309770174,1704109838697,-500.0,0.00042739,7]
[309770176,1704109838706,-187.32103561,0.00042739,7]
[309770178,1704109838715,-505.75018647,0.00042739,7]
[309770180,1704109838724,-523.64073007,0.00042739,7]
[309770182,1704109838733,-500.0,0.00042739,7]
[309770184,1704109838742,-170.18118556,0.00042739,7]
[309770186,1704109838751,-500.0,0.00042739,7]
[309770188,1704109838760,-500.0,0.00042739,7]
[309770190,1704109838769,-147.40669928,0.00042739,7]
[309770193,1704109838784,-352.59330072,0.00042739,7]
[309770195,1704109838793,-500.0,0.00042739,7]
[309770197,1704109838802,-500.0,0.00042739,7]
[309770199,1704109838811,-500.0,0.00042739,7]
[309770201,1704109838820,-500.0,0.00042739,7]
[309770203,1704109838830,-500.0,0.00042739,7]
[309770205,1704109838839,-500.0,0.00042739,7]
[309770207,1704109838848,-500.0,0.00042739,7]
[309770209,1704109838857,-123.46866503,0.00042739,7]
[309775558,1704110030066,200.0,0.00033987,120]
[309775559,1704110030085,200.0,0.00033987,120]
[309775561,1704110460854,176.012592,0.00031497,120]
[309775562,1704110742323,308.4223752,0.00019715,2]
[309775603,1704111032182,-285.17267218,0.00020626,2]
[309775604,1704111032192,-80.90310769,0.00020626,2]
[309775671,1704111038440,-1773.68924842,0.00020625,2]
[309775674,1704111038453,-264.3616191,0.00020625,2]
[309775676,1704111038465,-245.44220656,0.00020625,2]
[309775678,1704111038475,-399.15407367,0.00020625,2]
[309775680,1704111038485,-170.07739419,0.00020625,2]
[309775682,1704111038500,-1584.15548242,0.00020625,2]
[309775685,1704111038513,-85.33593507,0.00020626,2]
[309775687,1704111038526,-154.84515485,0.00020626,2]
[309775689,1704111038538,-241.99633195,0.00020626,2]
[309775692,1704111038552,-360.01037887,0.00020626,2]
[309775694,1704111038563,-188.22,0.00020626,3]
[309775696,1704111038575,-225.87,0.00020627,3]
[309775699,1704111038588,-14213.77123395,0.00020633,2]
[309775701,1704111038602,-26366.26316002,0.00020633,2]
[309775703,1704111038616,-154.84515485,0.00020634,2]
[309775706,1704111038629,-154.84515485,0.00020634,2]
[309775708,1704111038643,-2803.25312316,0.00020634,2]
[309775710,1704111038653,-154.84515485,0.00020634,2]
[309775712,1704111038664,-1572.81659635,0.00020634,2]
[309775715,1704111038677,-593.46742734,0.00020634,2]
[309775717,1704111038690,-916.23178014,0.00020634,2]
[309775719,1704111038702,-166.08253714,0.00020634,2]
[309775721,1704111038714,-585.77366444,0.00020634,2]
[309775723,1704111038726,-164.57325592,0.00020634,2]
[309775726,1704111038738,-2630.41248819,0.00020634,2]
[309775728,1704111038749,-3731.01777703,0.00020635,2]
[309775730,1704111038761,-15178.7193092,0.00020635,2]
[309775732,1704111038772,-7849.52199751,0.00020635,2]
[309775734,1704111038783,-8594.50341129,0.00020636,2]
[309775737,1704111038797,-11028.13855113,0.00020636,2]
[309775739,1704111038808,-154.84515485,0.00020636,2]
[309775741,1704111038820,-1677.73758043,0.00020636,2]
[309775743,1704111038831,-873.27865021,0.00020636,2]
[309775745,1704111038842,-293.82215808,0.00020636,2]
[309775748,1704111038853,-15849.01373132,0.00020636,2]
[309775750,1704111038864,-943.79443279,0.00020637,2]
[309775752,1704111038874,-2702.82461258,0.00020637,2]
[309775754,1704111038885,-590.16182725,0.00020637,2]
[309775756,1704111038896,-154.84515485,0.00020637,2]
[309775758,1704111038906,-154.84515485,0.00020637,2]
[309775760,1704111038917,-154.84515485,0.00020637,2]
[309775763,1704111038928,-552.93023041,0.00020637,2]
[309775765,1704111038939,-413.28652308,0.00020637,2]
[309775767,1704111038950,-253.03689703,0.00020638,2]
[309775769,1704111038961,-154.84515485,0.00020638,2]
[309775770,1704111038971,-154.84515485,0.00020638,2]
[309775771,1704111038982,-249.86733187,0.00020638,2]
[309775772,1704111038993,-230.0137314,0.00020638,2]
[309775773,1704111039004,-20821.7469816,0.00020638,2]
[309775774,1704111039015,-176.21297277,0.00020639,2]
[309775775,1704111039026,-641.65330945,0.00020639,2]
[309775776,1704111039037,-160.63706452,0.00020639,2]
[309775777,1704111039048,-1192.67954323,0.00020639,2]
[309775778,1704111039059,-707.58589183,0.00020639,2]
[309775779,1704111039070,-154.84515485,0.00020639,2]
[309775780,1704111039080,-328.6475025,0.00020639,2]
[309775781,1704111039091,-858.99104883,0.00020639,2]
[309775782,1704111039101,-154.84515485,0.0002064,2]
[309775788,1704111039214,-156.48322816,0.0002064,2]
[309775790,1704111039223,-4822.33435897,0.00020642,2]
[309775793,1704111039235,-1119.75925744,0.00020642,2]
[309775795,1704111039245,-22094.7193669,0.00020642,2]
[309775796,1704111039254,-3471.12171036,0.00020643,2]
[309775799,1704111039263,-4778.86931745,0.00020643,2]
[309775800,1704111039272,-223.5951374,0.00020645,2]
[309775802,1704111039282,-154.84515485,0.00020656,2]
[309775804,1704111039291,-2025.89489209,0.00020689,2]
[309775806,1704111039300,-154.84515485,0.00020705,2]
[309775808,1704111039309,-2545.09756584,0.000208,3]
[309775810,1704111039318,-166.666666,0.00021918,2]
[309775812,1704111039327,-9423.987408,0.00021918,2]